Cogmind - Beta 15 @@@ ROGUE MODE // 2025.08.27 @ 14:28:09 Player: Bolche Result: Destroyed by S-10 Pest with Light Assault Rifle Performance ------------- Evolutions (1) 500 Regions Visited (3) 600 Robots Destroyed (14) 70 Value Destroyed (319) 319 Prototype IDs (0) 0 Alien Tech Used (0) 0 Bonus (0) 0 TOTAL SCORE: 1489 Bonus ------- None Cogmind --------- Core Integrity 0/400 Matter 217/300 Energy 43/100 System Corruption 0% Temperature Cool (0) Movement Core (50) Location -9/Mines Parts ------- > --- POWER (2) -------- (None) > --- PROPULSION (2) --- (None) > --- UTILITY (3) ------ (None) > --- WEAPON (2) ------- (None) > --- INVENTORY (5) ---- Medium Matter Pod (0) Particle Cannon Mining Laser Peak State ------------ > --- POWER ------------ Ion Engine Light Ion Engine > --- PROPULSION ------- Wheel Wheel > --- UTILITY ---------- High-capacity Battery Structural Scanner ECM Suite > --- WEAPON ----------- EM Pulse Gun Particle Cannon > --- INVENTORY -------- Hover Unit Terrain Scanner Light Assault Rifle Grenade Launcher [Rating: 10] Favorites ----------- Power Ion Engine Engine Ion Engine Propulsion Wheel Treads Light Treads Wheel Wheel Hover Unit Hover Unit Utility Structural Scanner Device Structural Scanner Storage High-capacity Battery Weapon EM Pulse Gun Energy Gun EM Pulse Gun Energy Cannon Particle Cannon Ballistic Gun Light Assault Rifle Launcher Grenade Launcher Build | -11 -10 -9 -9 ------- Run | Yrd Mat Mat Min Slots Evolved 2 | . . 2 . Power 1 | . . 1 . Propulsion . | . . . . Utility 1 | . . 1 . Weapon . | . . . . Parts Attached 17 | 5 5 6 1 Power 3 | 1 1 1 . Engine 3 | 1 1 1 . Core . | . . . . Reactor . | . . . . Propulsion 4 | 2 . 1 1 Treads 1 | . . . 1 Leg . | . . . . Wheel 2 | 2 . . . Hover 1 | . . 1 . Flight . | . . . . Utility 4 | . 3 1 . Device 3 | . 2 1 . Storage 1 | . 1 . . Processor . | . . . . Hackware . | . . . . Protection . | . . . . Artifact . | . . . . Weapon 6 | 2 1 3 . Energy Gun 3 | 2 1 . . Energy Cannon 1 | . . 1 . Ballistic Gun 1 | . . 1 . Ballistic Cannon . | . . . . Launcher 1 | . . 1 . Special Weapon . | . . . . Impact Weapon . | . . . . Slashing Weapon . | . . . . Piercing Weapon . | . . . . Special Melee Weapon . | . . . . Unidentified Prototypes . | . . . . Parts Lost 7 | . . 6 1 Power 2 | . . 2 . Propulsion 4 | . . 3 1 Utility . | . . . . Weapon 1 | . . 1 . Highest Loss Streak 6 | . . 6 1 To Critical Strikes . | . . . . Average Backups 3 | 2 4 3 3 Power . | . . . . Propulsion 1 | 1 1 . . Utility . | . . 1 1 Weapon 1 | . 2 2 2 Tool/Special . | . . . . Unused Backups 2 | . 2 . . Power . | . . . . Propulsion 2 | . 2 . . Utility . | . . . . Weapon . | . . . . Tool/Special . | . . . . Average Slot Usage (%) 72 | . 86 77 8 Engine 11 | . 14 11 . Wheel 19 | . 28 16 . Device 15 | . 11 19 6 Storage 5 | . 3 8 . Energy Gun 16 | . 28 12 . Energy Cannon 1 | . . 3 . Ballistic Gun 1 | . . 2 . Peak Build Rating 10 | 5 7 10 2 Average Rating 5 | 3 6 7 . On Entrance 3 | . 5 7 . Naked Turns 35 | . . 23 12 Heaviest Build 18 | 7 13 18 2 Greatest Support 20 | 20 20 20 20 Greatest Overweight (x) 3 | . . 3 . Average Overweight (x) . | . . . . Largest Inventory Capacity 5 | 5 5 5 5 Average Capacity 5 | 5 5 5 5 Most Carried 5 | 5 5 5 4 Average Carried 3 | 2 4 3 3 Final Capacity 5 | 5 5 5 5 Final Carried 5 | 4 4 5 3 Class Distribution -------------------- 72% | Mutant 27% | Infiltrator-Mutant Dominant Class ---------------- Mutant | -10/Materials Infiltrator-Mutant | -9/Materials Mutant | -9/Mines Resources | -11 -10 -9 -9 ----------- Run | Yrd Mat Mat Min Matter Collected 376 | 280 17 79 . Remotely . | . . . . Salvage Created 444 | 44 17 383 . Parts 34 | 3 3 28 . Haulers Intercepted . | . . . . Recyclers Shooed . | . . . . Parts Field Recycled . | . . . . Retrieved Matter . | . . . . Parts Self-Destructed . | . . . . Prevented . | . . . . Kills | -11 -10 -9 -9 ------- Run | Yrd Mat Mat Min Combat Hostiles Destroyed 10 | 1 . 9 . Guns 2 | 1 . 1 . Cannons 2 | . . 2 . AOE 6 | . . 6 . Classes Destroyed 6 | 1 1 4 . Recycler 1 | . . 1 . Mechanic 1 | . . 1 . Watcher 2 | . 1 1 . Swarmer 4 | . . 4 . Grunt 5 | 1 . 4 . Sentry 1 | . . 1 . Best Kill Streak 9 | 1 1 9 . Combat Bots Only 7 | 1 . 7 . Max Kills in Single Turn 2 | 1 1 2 . Gunslinging . | . . . . Exploded 2 | . . 2 . Melee . | . . . . Uniques/NPCs Destroyed . | . . . . Combat | -11 -10 -9 -9 -------- Run | Yrd Mat Mat Min Hostile Shots Fired 151 | 5 8 94 44 Missed 50 | 2 3 35 10 Hits 101 | 3 5 59 34 Projectile 101 | 3 5 59 34 Critical Strikes 4 | . . 4 . Damage Taken 1012 | 32 40 600 340 Core 422 | 11 7 165 239 Absorbed by Shields . | . . . . Regen/Repaired (Parts) 29 | . . 29 . Core Remaining (%) 93 | 95 92 . . Volleys Fired 23 | 4 2 17 . Largest 2 | 2 2 2 . Hottest 108 | 80 80 108 . Shots Fired 44 | 8 4 32 . Gun 29 | 8 4 17 . Cannon 11 | . . 11 . Launcher 4 | . . 4 . Special . | . . . . Kinetic 6 | . . 6 . Thermal 13 | . 2 11 . Explosive 4 | . . 4 . Electromagnetic 21 | 8 2 11 . Robot Hit Streak 6 | 2 3 6 . Robot Miss Streak 3 | 1 1 3 . Penetration Max . | . . . . Secondary Targets . | . . . . Shots Hit Robots 25 | 5 2 18 . Core Hits 17 | 2 1 14 . Critical Kills . | . . . . Critical Parts Destroyed . | . . . . Critical Strikes . | . . . . Melee Attacks . | . . . . Impact . | . . . . Slashing . | . . . . Piercing . | . . . . Sneak Attacks . | . . . . Combat Hostiles . | . . . . Follow-up Attacks . | . . . . Damage Inflicted 647 | 78 32 537 . Guns 203 | 78 32 93 . Cannons 163 | . . 163 . Explosions 274 | . . 274 . Melee . | . . . . Ramming 7 | . . 7 . Kinetic 24 | . . 24 . Thermal 200 | . . 200 . Explosive 237 | . . 237 . Electromagnetic 179 | 78 32 69 . Impact . | . . . . Slashing . | . . . . Piercing . | . . . . Highest Corruption . | . . . . Average Corruption . | . . . . Corruption Purged . | . . . . Corruption Blocked . | . . . . Overload Shots . | . . . . Overflow Damage 2 | . . 2 . Projectiles 2 | . . 2 . Explosions . | . . . . Melee . | . . . . Knockbacks . | . . . . Impact . | . . . . Kinetic . | . . . . Secondary . | . . . . Self-Inflicted Damage 3 | . . 3 . Shots . | . . . . Rammed 1 | . . 1 . Targets Rammed 1 | . . 1 . Kicked . | . . . . Crushed . | . . . . Highest Temperature 294 | 90 18 294 . Average Temperature 111 | 49 12 133 . Received Heat Transfer 330 | 18 . 216 96 Effects 3 | . . 3 . Interference 3 | . . 3 . Siege Activations . | . . . . Martial Activations . | . . . . Shielding Activations . | . . . . Robots Disrupted . | . . . . Combat Hostiles . | . . . . Robots Corrupted . | . . . . Combat Hostiles . | . . . . Parts Fried . | . . . . Impact Corruptions . | . . . . Robots Melted . | . . . . Combat Hostiles . | . . . . Parts Melted . | . . . . Heat Transferred 346 | . . 346 . Parts Sabotaged . | . . . . Parts Stolen . | . . . . Parts Stripped . | . . . . Power Chain Reactions 1 | . . 1 . Alert | -11 -10 -9 -9 ------- Run | Yrd Mat Mat Min Maximum Alert Level . | . . . . Low Security (%) 100 | 100 100 100 100 Level 1 . | . . . . Level 2 . | . . . . Level 3 . | . . . . Level 4 . | . . . . Level 5 . | . . . . High Security . | . . . . Max Security . | . . . . Peak Influence 194 | 20 7 194 52 Initial 52 | . 6 . 52 Average 30 | 1 . 58 38 Influence Increases 325 | 20 7 268 30 Destroy 0b10 Robot/C 200 | 20 . 180 . Destroy 0b10 Robot/NC 20 | . 5 15 . Destroy Leader 44 | . 2 42 . Successful Hack 14 | . . 14 . Destroy Structure 17 | . . 17 . Lose Combat Pursuer 30 | . . . 30 Influence Decreases 273 | 10 17 134 112 Entered New Map 86 | . 4 . 82 Time Decay 117 | 10 13 74 20 Lost Part 70 | . . 60 10 Squads Dispatched 3 | . 1 2 . Investigation . | . . . . Extermination . | . . . . Reinforcement 3 | . 1 2 . Assault . | . . . . Garrison . | . . . . Intercept . | . . . . Searches Triggered . | . . . . Construction Impeded 1 | . . 1 . Haulers Reinforced . | . . . . Active Scanning Responses . | . . . . Cargo Convoy Interrupts . | . . . . Stealth | -11 -10 -9 -9 --------- Run | Yrd Mat Mat Min Distress Signals 1 | . . 1 . Communications Jammed . | . . . . Distress Signals . | . . . . Times Spotted 34 | 1 6 20 7 Peak Tracking Total 7 | 1 3 7 6 Tactical Retreats 4 | . . 2 2 Traps | -11 -10 -9 -9 ------- Run | Yrd Mat Mat Min Traps Triggered . | . . . . Indirectly . | . . . . Trap Hack Attempts . | . . . . Triggered . | . . . . Disarmed . | . . . . Reprogrammed . | . . . . Reused . | . . . . Traps Extracted . | . . . . Installed . | . . . . Triggered . | . . . . Machines | -11 -10 -9 -9 ---------- Run | Yrd Mat Mat Min Machines Disabled . | . . . . Max in Single Turn . | . . . . Machines Repaired . | . . . . Machines Dismantled . | . . . . Machines Sabotaged . | . . . . Overloaded Fab Kills . | . . . . Hacking | -11 -10 -9 -9 --------- Run | Yrd Mat Mat Min Machines Accessed 5 | . 2 3 . Terminals 3 | . 1 2 . Fabricators . | . . . . Repair Stations 1 | . . 1 . Recycling Units 1 | . 1 . . Scanalyzers . | . . . . Garrison Access . | . . . . Total Hacks 9 | . 3 6 . Successful 6 | . 2 4 . Failed 3 | . 1 2 . Catastrophic . | . . . . Database Lockouts . | . . . . Manual . | . . . . Terminals 4 | . 1 3 . Fabricators . | . . . . Repair Stations 3 | . . 3 . Recycling Units 2 | . 2 . . Scanalyzers . | . . . . Garrison Access . | . . . . Terminal Hacks 2 | . . 2 . Record 2 | . . 2 . Fabricator Hacks . | . . . . Repair Station Hacks 2 | . . 2 . Scan Component 1 | . . 1 . Repair 1 | . . 1 . Recycling Unit Hacks 2 | . 2 . . Report Inventory 1 | . 1 . . Retrieve Components 1 | . 1 . . Scanalyzer . | . . . . Garrison Access Hacks . | . . . . Unauthorized Hacks . | . . . . Terminals . | . . . . Fabricators . | . . . . Repair Stations . | . . . . Recycling Units . | . . . . Scanalyzers . | . . . . Garrison Access . | . . . . Data Cores Recovered . | . . . . Used . | . . . . Hacking Detections 2 | . 1 1 . Full Trace Events . | . . . . Feedback Events . | . . . . Feedback Blocked . | . . . . Robot Schematics Acquired . | . . . . Robots Built . | . . . . Authchips . | . . . . Time . | . . . . Total Robot Build Rating . | . . . . Part Schematics Acquired . | . . . . Parts Built . | . . . . Authchips . | . . . . Time . | . . . . Total Part Build Rating . | . . . . Parts Repaired 1 | . . 1 . Time 26 | . . 26 . Parts Recycled . | . . . . Recycled Matter . | . . . . Retrieved Matter . | . . . . Retrieved Components 3 | . 3 . . Parts Scanalyzed . | . . . . Part Schematics Acquired . | . . . . Parts Damaged . | . . . . Bothacking | -11 -10 -9 -9 ------------ Run | Yrd Mat Mat Min Used RIF Installer . | . . . . Robots Hacked . | . . . . Non-combat . | . . . . Combat . | . . . . Robot Hacks Applied . | . . . . Relay Couplers Released . | . . . . Fabnet Peak Effective % . | . . . . Robots Rewired . | . . . . Allies Hacked . | . . . . Hacks Repelled . | . . . . Allies | -11 -10 -9 -9 -------- Run | Yrd Mat Mat Min Total Allies . | . . . . Largest Group . | . . . . Highest-Rated Group . | . . . . Highest-Rated Ally . | . . . . Total Orders . | . . . . Ally Attacks . | . . . . Total Damage . | . . . . Kills . | . . . . Allies Corrupted . | . . . . Allies Melted . | . . . . Intel | -11 -10 -9 -9 ------- Run | Yrd Mat Mat Min Active Infowar (turns) 376 | . 128 212 36 Terrain 151 | . 93 58 . Structural 247 | . 35 212 . ECM 170 | . . 134 36 Robot Analysis Total . | . . . . Derelict Logs Recovered . | . . . . Drone Launches . | . . . . Drone Recoveries . | . . . . Exploration | -11 -10 -9 -9 ------------- Run | Yrd Mat Mat Min Turns Passed 527 | 89 154 235 49 Spaces Moved 497 | 82 164 173 78 Core 147 | 28 . 45 74 Treads 4 | . . . 4 Legs . | . . . . Wheels 335 | 54 164 117 . Hover 11 | . . 11 . Flight . | . . . . Fastest Speed 50 | 50 80 50 50 Average Speed 75 | 69 80 81 55 Slowest Speed 200 | 80 80 200 160 Overloaded Moves . | . . . . Propulsion Burnouts . | . . . . Robots Hopped . | . . . . Potential Cave-ins . | . . . . Cave-ins Triggered . | . . . . Exploration Rate (%) 18 | 5 21 20 29 Regions Visited 3 Branch Regions 1 Pre-discovered Areas . | . . . . Known Exits Taken . | . . . . Unknown Exits Taken 3 | 1 1 1 . Scrap Searched . | . . . . Spaces Dug . | . . . . Terrain Destroyed 24 | . . 24 . Melee . | . . . . Projectile . | . . . . AOE 24 | . . 24 . Terrain Rammed . | . . . . Walls Destroyed . | . . . . Machines Disabled . | . . . . Actions | -11 -10 -9 -9 --------- Run | Yrd Mat Mat Min Total 613 | 107 185 238 83 Wait 27 | . . 24 3 Move 494 | 81 163 172 78 Hop . | . . . . Pick Up 25 | 10 8 7 . Fast Attach . | . . . . Attach 24 | 8 4 10 2 Detach 9 | 3 1 5 . Swap 1 | . 1 . . Drop 9 | 1 6 2 . Fire 23 | 4 2 17 . Melee . | . . . . Ram 1 | . . 1 . Kick . | . . . . Crush . | . . . . Escape Stasis . | . . . . Rewire . | . . . . Trap . | . . . . Miscellaneous . | . . . . Route ------- -11/Scrapyard -10/Materials -9/Materials -9/Mines History --------- Turn | Location | Event 2 | -11/Scrapyard | Met Revision 17 62 | -11/Scrapyard | Discovered new exit (range 8) 90 | -11/Scrapyard | Entered Materials 91 | -10/Materials | Met a group of wandering Federalists 226 | -10/Materials | Discovered new exit (range 16) 244 | -10/Materials | Entered another Materials area 244 | -9/Materials | Evolved 2 slots: Power x1, Utility x1 315 | -9/Materials | Repaired Hcp. Battery 453 | -9/Materials | Destroyed 7 combat bots 456 | -9/Materials | Released all parts (4) 468 | -9/Materials | Discovered new exit (range 8) 479 | -9/Materials | Entered Mines 484 | -9/Mines | Lost 6 parts (2p3n1w) 490 | -9/Mines | Core integrity fell below 50% 516 | -9/Mines | Released all parts (1) 520 | -9/Mines | Core integrity fell below 20% 528 | -9/Mines | Destroyed by S-10 Pest with Light Assault Rifle Last Messages --------------- Released Structural Scanner. Released Lgt. Assault Rifle. K-01 Serf collects debris. U-05 Engineer lays Concrete. K-01 Serf collects debris. K-01 Serf cleans the Scanalyzer. EXIT=FOUND Acquired Med. Matter Pod. Dropped EM Pulse Gun. Acquired Mining Laser. LOCATION=UNKNOWN GOAL=ESCAPE Something is scanning the area. Lgt. Treads destroyed. To regain energy, simply wait via the mouse wheel, '.', or KP5. Also make sure your per-turn energy generation is a net positive, and consider deactivating power-draining parts if not. Released ECM Suite. Map ----- +----------------------------------------------------+ | | | | | | | | | | | ?????????????????????????????????????????????????? | | ?????????????????????????????????????????????????? | | ?????????????????????????????????????????????????? | | ?????????????????????????????????????????????????? | | ?????????????????????????????????????????????????? | | ?????????????????????????????????????????????????? | | ?????????????????????????????????????????????????? | | ?????????????????????????????????????????????????? | | ?????????????????????????????????????????????????? | | ?????????????????????????????????????????????????? | | ?????????????????????????????????????????????????? | | ?????????????????????????????????????????????????? | | ?????????????????????????????????????????????????? | | ?????????????????????????????????????????????????? | | ?????????????????????????????????????###?????????? | | ????????????????????????????????????# ##????????? | | ???????????????????????????????????# ##???????? | | ?????????????????????????###??????? #???????? | | ??????????????# ########## ##?????# #???????? | | ??????????????# ##???? #????????? | | ??????????????# k k @ ##?## #????????? | | ?????????????????######### ### #????????? | | ?????????????????????????## #????????????? | | ??????????????????????????## ##????????????? | | ???????????????????????????### ##?????????????? | | ?????????????????????????????## s ##?????????????? | | ??????????????????????????????##ss ##????????????? | | ???????????????????????????????# s #####????????? | | ???????????????????????????????## #????????? | | ????????????????????????????????# ## #????????? | | ????????????????????????????????# ##???????????? | | ???????????????????????????????## #????????????? | | ????????????????????????????#### #????????????? | | ???????????????????????????## ##????????????? | | ???????????????????????????# ! ##????????????? | | ??????????????????????????## #????????????? | | ?????????????????????????## #????????????? | | ?????????????????????????# #????????????? | | ???????????????????#####?# #????????????? | | ??????????????###### #### ##????????????? | | ???###???????## ## #?### ##?????????????? | | ??## #??????# #???## ##??????????????? | | ??# ####?## #????# ##???????????????? | | ??# ### ###### #????????????????? | | ???# #????????????????? | +----------------------------------------------------+ Best States ------------- Heat Dissipation 28 Energy Generation 15 Energy Capacity 525 Matter Stores 300 Matter Capacity 300 Sight Range 16 Terrain Scan Range 14 Terrain Scan Density 10 ECM Strength 1 Evasion (%) 50 Recoil Reduction 1 Item Schematics ----------------- None Robot Schematics ------------------ None Fabricated ------------ Nothing Repaired ---------- Hcp. Battery | 35% | -9/Materials Alien Tech Used ----------------- None Achievements -------------- None Challenges ------------ None Game ------ Seed LightningNetworkedHumpback Manual? 0 Play Time 00:30:13 Cumulative 3.7 hours Start 2025.08.26 @ 15:46:38 End 2025.08.27 @ 14:28:09 Sessions 5 Manual Loads 0 Difficulty Rogue Special Mode None Game No. 9 Rogue 3 Adventurer 6 Explorer 0 Win Type - Total 0 Types 0/0/0/0/0/0/0/0/0/0 Lore% 3 Gallery% 6 Achievement% 7 Wizard Run 0 Options --------- Layout 1 ASCII 0 Keyboard 1 Movement Numpad Keybinds 1 Fullscreen 2 Font 24/Smallcaps Map View 50x35 Zoom Use 33% Tactical HUD 0 Map Filters NONE Filters NONE Steam 1 RUN: 16cac936-9d8d-4b2a-9dfa-6dad155cdaf4